[Event "AUT-ch 2018"]
[Site "Vienna"]
[Date "2018.07.29"]
[Round "9"]
[White "Hiermann, Dietmar"]
[Black "Ager, Josef"]
[Result "1-0"]
[ECO "C54"]
[WhiteElo "2202"]
[BlackElo "2154"]
[Annotator "NA"]
[PlyCount "83"]
[EventDate "2018.07.22"]
[EventType "swiss"]
[EventCountry "AUT"]
[SourceTitle "playchess.com"]
[Source "ChessBase"]
[SourceQuality "1"]
[TimeControl "40/5400+30:1800+30"]

1. e4 {[%emt 0:00:00]} e5 {[%emt 0:00:05]} 2. Nf3 {[%emt 0:00:00]} Nc6 {[%emt 0:00:04]} 3. Bc4 {[%emt 0:00:00]} Bc5 {[%emt 0:00:21]} 4. c3 {[%emt 0:00:00]} Nf6 {[%emt 0:00:05]} 5. d3 {[%emt 0:00:00]} a6 {[%emt 0:00:28]} 6. Nbd2 {[%emt 0:00:17]} d6 {[%emt 0:00:07]} 7. Bb3 {[%emt 0:00:23]} O-O {[%emt 0:00:38]} 8. O-O {[%emt 0:02:29]} Be6 {[%emt 0:00:05]} 9. h3 {[%emt 0:04:27]} Qd7 {[%emt 0:00:18]} 10. Nh2 {[%emt 0:10:35]} Ne7 {[%emt 0:09:01]} 11. Re1 {[%emt 0:06:33]} Ng6 {[%emt 0:00:13]} 12. Ndf1 {[%emt 0:01:48]} Bxb3 {[%emt 0:05:10]} 13. axb3 {[%emt 0:00:51]} d5 {[%emt 0:00:57]} 14. b4 {[%emt 0:02:41]} Ba7 {[%emt 0:01:43]} 15. Bg5 {[%emt 0:04:19]} Ne8 {[%emt 0:01:23]} 16. Ng3 {[%emt 0:08:25]} f6 {[%emt 0:03:47]} 17. Bd2 {[%emt 0:05:06]} c6 {[%emt 0:01:10]} 18. Nf3 {[%emt 0:00:38]} Nc7 {[%emt 0:01:48]} 19. Nf5 {[%emt 0:05:51]} Rad8 {[%emt 0:01:27]} 20. Qb3 {[%emt 0:03:06]} Qf7 {[%emt 0:03:25]} 21. Rad1 {[%emt 0:02:51]} Rd7 {[%emt 0:04:31]} 22. Qc2 {[%emt 0:06:07]} Ne7 {[%emt 0:06:22]} 23. Ng3 {[%emt 0:06:28]} Ne6 {[%emt 0:01:12]} 24. Be3 {[%emt 0:03:02]} Bxe3 {[%emt 0:00:46]} 25. fxe3 {[%emt 0:00:25]} dxe4 {[%emt 0:05:56]} 26. Nxe4 {[%emt 0:00:44]} Ng6 {[%emt 0:02:33]} 27. Rf1 {[%emt 0:06:56]} Qe7 {[%emt 0:01:14]} 28. Rde1 {[%emt 0:02:57]} Nc7 {[%emt 0:06:15]} 29. Nc5 {[%emt 0:00:40]} Rd5 {[%emt 0:00:39]} 30. c4 {[%emt 0:01:46]} Rxc5 {[%emt 0:00:12]} 31. bxc5 {[%emt 0:00:03]} Qxc5 {[%emt 0:00:11]} 32. d4 {[%emt 0:00:32]} Qe7 {[%emt 0:00:34]} 33. Qb3 {[%emt 0:01:53]} Rb8 {[%emt 0:01:09]} 34. Rd1 {[%emt 0:01:56]} Kh8 {[%emt 0:01:52]} 35. d5 {[%emt 0:00:34]} cxd5 {[%emt 0:00:14]} 36. cxd5 {[%emt 0:00:01]} Nb5 {[%emt 0:00:08]} 37. Rf2 {[%emt 0:02:27]} Qd6 {[%emt 0:02:09]} 38. Nd2 {[%emt 0:01:28]} Rd8 {[%emt 0:00:33]} 39. Ne4 {[%emt 0:01:26]} Qb6 {[%emt 0:00:29]} 40. Kh2 {[%emt 0:05:06]} Nf8 {[%emt 0:32:14]} 41. Rc2 {[%emt 0:31:47]} Nd7 {[%emt 0:00:32]} 42. Rdc1 {[%emt 0:02:38]} 1-0

[Event "AUT-ch 2018"]
[Site "Vienna"]
[Date "2018.07.29"]
[Round "9"]
[White "Steiner, Bruno"]
[Black "Zanon, Magnus"]
[Result "1-0"]
[ECO "A00"]
[WhiteElo "2194"]
[BlackElo "2022"]
[Annotator "NA"]
[PlyCount "81"]
[EventDate "2018.07.22"]
[EventType "swiss"]
[EventCountry "AUT"]
[SourceTitle "playchess.com"]
[Source "ChessBase"]
[SourceQuality "1"]
[TimeControl "40/5400+30:1800+30"]

1. e3 {[%emt 0:00:07]} g6 {[%emt 0:01:00]} 2. c4 {[%emt 0:00:38]} d6 {[%emt 0:00:11]} 3. Nc3 {[%emt 0:00:10]} Bg7 {[%emt 0:00:19]} 4. Nf3 {[%emt 0:00:28]} f5 {[%emt 0:02:27]} 5. Be2 {[%emt 0:02:34]} Nf6 {[%emt 0:00:06]} 6. O-O {[%emt 0:00:05]} O-O {[%emt 0:00:39]} 7. d3 {[%emt 0:00:50]} e5 {[%emt 0:02:14]} 8. Bd2 {[%emt 0:02:35]} h6 {[%emt 0:04:45]} 9. Qc2 {[%emt 0:08:42]} Be6 {[%emt 0:02:32]} 10. Rfd1 {[%emt 0:00:44]} Nbd7 {[%emt 0:04:42]} 11. Rab1 {[%emt 0:00:13]} a5 {[%emt 0:02:47]} 12. Nb5 {[%emt 0:04:40]} Ne8 {[%emt 0:10:00]} 13. b3 {[%emt 0:06:16]} g5 {[%emt 0:03:51]} 14. Be1 {[%emt 0:01:05]} g4 {[%emt 0:02:00]} 15. Nd2 {[%emt 0:00:44]} Qg5 {[%emt 0:03:26]} 16. Nf1 {[%emt 0:02:25]} h5 {[%emt 0:01:32]} 17. d4 {[%emt 0:04:00]} f4 {[%emt 0:04:16]} 18. Bd3 {[%emt 0:13:26]} f3 {[%emt 0:07:58]} 19. g3 {[%emt 0:02:40]} h4 {[%emt 0:03:05]} 20. c5 {[%emt 0:06:03]} Rf6 {[%emt 0:07:05]} 21. cxd6 {[%emt 0:04:17]} cxd6 {[%emt 0:00:25]} 22. Bc4 {[%emt 0:06:38]} d5 {[%emt 0:01:11]} 23. dxe5 {[%emt 0:00:20]} Rh6 {[%emt 0:00:42]} 24. Bxd5 {[%emt 0:00:25]} Bxd5 {[%emt 0:00:23]} 25. Rxd5 {[%emt 0:00:07]} hxg3 {[%emt 0:00:07]} 26. fxg3 {[%emt 0:02:30]} Nxe5 {[%emt 0:00:56]} 27. Bc3 {[%emt 0:01:28]} f2+ {[%emt 0:00:18]} 28. Qxf2 {[%emt 0:01:29]} Qg6 {[%emt 0:01:21]} 29. Rbd1 {[%emt 0:13:55]} Nf3+ {[%emt 0:00:15]} 30. Kh1 {[%emt 0:00:05]} Qe4 {[%emt 0:00:22]} 31. Qg2 {[%emt 0:00:47]} Raa6 {[%emt 0:03:56]} 32. Bxg7 {[%emt 0:01:12]} Nxg7 {[%emt 0:00:38]} 33. R5d4 {[%emt 0:01:36]} Qg6 {[%emt 0:02:12]} 34. Rd8+ {[%emt 0:01:36]} Kh7 {[%emt 0:00:44]} 35. Nd4 {[%emt 0:00:18]} Rd6 {[%emt 0:10:58]} 36. Nxf3 {[%emt 0:01:03]} Rxd8 {[%emt 0:00:04]} 37. Rxd8 {[%emt 0:00:24]} Qf6 {[%emt 0:00:28]} 38. Rd4 {[%emt 0:01:38]} gxf3 {[%emt 0:00:11]} 39. Qc2+ {[%emt 0:00:20]} Rg6 {[%emt 0:05:02]} 40. Rh4+ {[%emt 0:02:55]} Kg8 {[%emt 0:32:58]} 41. Qc8+ {[%emt 0:31:02]} 1-0

[Event "AUT-ch 2018"]
[Site "Vienna"]
[Date "2018.07.29"]
[Round "9"]
[White "Bauer, Thomas"]
[Black "Pacher, Simon"]
[Result "0-1"]
[ECO "C50"]
[WhiteElo "2181"]
[BlackElo "2097"]
[Annotator "NA"]
[PlyCount "126"]
[EventDate "2018.07.22"]
[EventType "swiss"]
[EventCountry "AUT"]
[SourceTitle "playchess.com"]
[Source "ChessBase"]
[SourceQuality "1"]
[TimeControl "40/5400+30:1800+30"]

1. e4 {[%emt 0:00:00]} e5 {[%emt 0:00:06]} 2. Nf3 {[%emt 0:00:00]} Nc6 {[%emt 0:00:06]} 3. Bc4 {[%emt 0:00:00]} Bc5 {[%emt 0:00:06]} 4. d3 {[%emt 0:00:08]} Nf6 {[%emt 0:00:31]} 5. O-O {[%emt 0:00:11]} O-O {[%emt 0:00:07]} 6. Nbd2 {[%emt 0:00:04]} a6 {[%emt 0:00:33]} 7. a4 {[%emt 0:00:05]} d6 {[%emt 0:00:09]} 8. c3 {[%emt 0:00:04]} Ba7 {[%emt 0:00:06]} 9. h3 {[%emt 0:00:12]} h6 {[%emt 0:00:08]} 10. Re1 {[%emt 0:00:03]} Ne7 {[%emt 0:02:35]} 11. Nf1 {[%emt 0:00:14]} Ng6 {[%emt 0:02:30]} 12. b4 {[%emt 0:01:17]} Be6 {[%emt 0:01:41]} 13. Bxe6 {[%emt 0:00:08]} fxe6 {[%emt 0:00:02]} 14. Ra2 {[%emt 0:00:06]} Qe8 {[%emt 0:00:43]} 15. Be3 {[%emt 0:04:14]} Nf4 {[%emt 0:06:51]} 16. Kh2 {[%emt 0:07:32]} g5 {[%emt 0:10:13]} 17. Bxa7 {[%emt 0:14:08]} Rxa7 {[%emt 0:01:58]} 18. g3 {[%emt 0:00:18]} N4h5 {[%emt 0:03:12]} 19. Kg2 {[%emt 0:01:55]} Qf7 {[%emt 0:06:34]} 20. N3h2 {[%emt 0:03:39]} Raa8 {[%emt 0:00:36]} 21. Ng4 {[%emt 0:03:55]} Nxg4 {[%emt 0:03:09]} 22. hxg4 {[%emt 0:01:51]} Nf6 {[%emt 0:00:11]} 23. Ne3 {[%emt 0:00:36]} Kg7 {[%emt 0:02:32]} 24. Nc4 {[%emt 0:03:25]} Rh8 {[%emt 0:08:07]} 25. Rh1 {[%emt 0:01:09]} Rad8 {[%emt 0:06:43]} 26. Na5 {[%emt 0:02:03]} c6 {[%emt 0:03:43]} 27. Qf3 {[%emt 0:01:09]} Rhf8 {[%emt 0:05:03]} 28. Rb2 {[%emt 0:01:21]} Qc7 {[%emt 0:02:21]} 29. Qe2 {[%emt 0:01:29]} d5 {[%emt 0:00:49]} 30. Nb3 {[%emt 0:04:11]} Rf7 {[%emt 0:05:05]} 31. Nc5 {[%emt 0:05:42]} Qe7 {[%emt 0:00:30]} 32. Rd2 {[%emt 0:03:42]} a5 {[%emt 0:00:38]} 33. Re1 {[%emt 0:15:36]} b6 {[%emt 0:01:17]} 34. Na6 {[%emt 0:03:50]} dxe4 {[%emt 0:02:18]} 35. dxe4 {[%emt 0:00:42]} Rxd2 {[%emt 0:00:07]} 36. Qxd2 {[%emt 0:00:04]} Nxg4 {[%emt 0:00:17]} 37. f3 {[%emt 0:02:07]} Nf6 {[%emt 0:01:24]} 38. Rh1 {[%emt 0:04:45]} Qb7 {[%emt 0:01:35]} 39. Qe2 {[%emt 0:00:41]} axb4 {[%emt 0:08:40]} 40. cxb4 {[%emt 0:01:00]} Rd7 {[%emt 0:30:39]} 41. a5 {[%emt 0:36:13]} Rd4 {[%emt 0:01:54]} 42. axb6 {[%emt 0:01:47]} Qxb6 {[%emt 0:00:16]} 43. Ra1 {[%emt 0:01:08]} g4 {[%emt 0:00:57]} 44. Ra2 {[%emt 0:06:36]} gxf3+ {[%emt 0:02:50]} 45. Qxf3 {[%emt 0:00:07]} Nxe4 {[%emt 0:07:34]} 46. Nc5 {[%emt 0:00:00]} Ng5 {[%emt 0:00:00]} 47. Qe3 {[%emt 0:00:00]} Qxb4 {[%emt 0:00:00]} 48. Nd3 {[%emt 0:00:00]} Qb8 {[%emt 0:00:00]} 49. Nf2 {[%emt 0:00:00]} c5 {[%emt 0:00:00]} 50. Kh2 {[%emt 0:00:00]} e4 {[%emt 0:00:00]} 51. Qc3 {[%emt 0:00:00]} Qb4 {[%emt 0:00:00]} 52. Qa1 {[%emt 0:00:00]} Kg6 {[%emt 0:00:00]} 53. Qc1 {[%emt 0:01:09]} Rd2 {[%emt 0:00:00]} 54. Rxd2 {[%emt 0:03:04]} Qxd2 {[%emt 0:00:00]} 55. Qxd2 {[%emt 0:02:14]} Nf3+ {[%emt 0:00:00]} 56. Kg2 {[%emt 0:00:11]} Nxd2 {[%emt 0:00:00]} 57. Ng4 {[%emt 0:00:18]} c4 {[%emt 0:01:55]} 58. Kf2 {[%emt 0:00:09]} h5 {[%emt 0:00:58]} 59. Ne3 {[%emt 0:00:36]} c3 {[%emt 0:00:51]} 60. Ke2 {[%emt 0:00:21]} Kf6 {[%emt 0:00:49]} 61. Ng2 {[%emt 0:01:06]} Kf5 {[%emt 0:00:58]} 62. Ne3+ {[%emt 0:00:53]} Ke5 {[%emt 0:00:03]} 63. Ng2 {[%emt 0:00:45]} Nf1 {[%emt 0:01:02]} 0-1

[Event "AUT-ch 2018"]
[Site "Vienna"]
[Date "2018.07.29"]
[Round "9"]
[White "Newrkla, Katharina"]
[Black "Mayrhuber, Nikola"]
[Result "1-0"]
[ECO "A06"]
[WhiteElo "2175"]
[BlackElo "2046"]
[Annotator "NA"]
[PlyCount "73"]
[EventDate "2018.07.22"]
[EventType "swiss"]
[EventCountry "AUT"]
[SourceTitle "playchess.com"]
[Source "ChessBase"]
[SourceQuality "1"]
[TimeControl "40/5400+30:1800+30"]

1. Nf3 {[%emt 0:00:00]} d5 {[%emt 0:00:19]} 2. e3 {[%emt 0:00:00]} Nf6 {[%emt 0:00:54]} 3. c4 {[%emt 0:00:07]} e6 {[%emt 0:00:55]} 4. b3 {[%emt 0:00:18]} c5 {[%emt 0:00:24]} 5. Bb2 {[%emt 0:00:10]} Nc6 {[%emt 0:00:23]} 6. cxd5 {[%emt 0:01:57]} exd5 {[%emt 0:00:43]} 7. Bb5 {[%emt 0:06:30]} Bg4 {[%emt 0:03:05]} 8. O-O {[%emt 0:11:25]} Be7 {[%emt 0:02:18]} 9. d3 {[%emt 0:00:36]} O-O {[%emt 0:01:04]} 10. Bxc6 {[%emt 0:02:14]} bxc6 {[%emt 0:00:09]} 11. Nbd2 {[%emt 0:00:12]} a5 {[%emt 0:06:45]} 12. Qc2 {[%emt 0:11:51]} Qb6 {[%emt 0:02:20]} 13. Ne5 {[%emt 0:01:05]} Bf5 {[%emt 0:00:46]} 14. e4 {[%emt 0:05:32]} Be6 {[%emt 0:03:03]} 15. Rfc1 {[%emt 0:03:30]} Bd6 {[%emt 0:09:29]} 16. Nef3 {[%emt 0:03:06]} Nd7 {[%emt 0:01:58]} 17. Ba3 {[%emt 0:09:03]} Qc7 {[%emt 0:05:41]} 18. d4 {[%emt 0:06:34]} cxd4 {[%emt 0:02:12]} 19. Bxd6 {[%emt 0:00:08]} Qxd6 {[%emt 0:00:06]} 20. Qxc6 {[%emt 0:00:57]} Qxc6 {[%emt 0:02:12]} 21. Rxc6 {[%emt 0:00:07]} dxe4 {[%emt 0:02:31]} 22. Nxd4 {[%emt 0:00:56]} Bd5 {[%emt 0:01:38]} 23. Rc7 {[%emt 0:03:15]} Nf6 {[%emt 0:02:35]} 24. Nc4 {[%emt 0:08:49]} Ra6 {[%emt 0:04:32]} 25. h3 {[%emt 0:09:14]} g6 {[%emt 0:03:22]} 26. Rc5 {[%emt 0:03:09]} a4 {[%emt 0:02:14]} 27. b4 {[%emt 0:00:31]} a3 {[%emt 0:01:41]} 28. Nc2 {[%emt 0:00:26]} Rfa8 {[%emt 0:03:07]} 29. b5 {[%emt 0:01:10]} R6a7 {[%emt 0:01:57]} 30. Nb6 {[%emt 0:01:51]} Rd8 {[%emt 0:00:54]} 31. Rd1 {[%emt 0:01:45]} Rad7 {[%emt 0:11:37]} 32. Nxd7 {[%emt 0:00:06]} Rxd7 {[%emt 0:00:04]} 33. Nb4 {[%emt 0:01:11]} Be6 {[%emt 0:00:15]} 34. Rxd7 {[%emt 0:00:10]} Nxd7 {[%emt 0:00:06]} 35. Rc3 {[%emt 0:00:10]} Nb6 {[%emt 0:01:27]} 36. Rxa3 {[%emt 0:00:10]} Bd7 {[%emt 0:00:04]} 37. Nc6 {[%emt 0:00:22]} 1-0

[Event "AUT-ch 2018"]
[Site "Vienna"]
[Date "2018.07.29"]
[Round "9"]
[White "Steiner, Adam"]
[Black "Khalakhan, Jurij"]
[Result "1-0"]
[ECO "B00"]
[WhiteElo "2174"]
[BlackElo "2215"]
[Annotator "NA"]
[PlyCount "103"]
[EventDate "2018.07.22"]
[EventType "swiss"]
[EventCountry "AUT"]
[SourceTitle "playchess.com"]
[Source "ChessBase"]
[SourceQuality "1"]
[TimeControl "40/5400+30:1800+30"]

1. e4 {[%emt 0:00:00]} b6 {[%emt 0:00:06]} 2. d4 {[%emt 0:00:07]} Bb7 {[%emt 0:00:01]} 3. Bd3 {[%emt 0:00:08]} e6 {[%emt 0:01:26]} 4. Nf3 {[%emt 0:00:25]} Nf6 {[%emt 0:01:36]} 5. Qe2 {[%emt 0:01:18]} d5 {[%emt 0:00:12]} 6. e5 {[%emt 0:01:28]} Nfd7 {[%emt 0:00:03]} 7. Bg5 {[%emt 0:05:38]} Be7 {[%emt 0:00:42]} 8. Bxe7 {[%emt 0:00:01]} Qxe7 {[%emt 0:00:10]} 9. O-O {[%emt 0:08:11]} c5 {[%emt 0:00:05]} 10. c3 {[%emt 0:00:12]} Nc6 {[%emt 0:00:03]} 11. a3 {[%emt 0:05:57]} g5 {[%emt 0:02:20]} 12. Qe3 {[%emt 0:04:24]} g4 {[%emt 0:02:14]} 13. Ng5 {[%emt 0:07:07]} cxd4 {[%emt 0:01:23]} 14. cxd4 {[%emt 0:00:01]} Nxd4 {[%emt 0:01:04]} 15. Nxf7 {[%emt 0:03:55]} Nf3+ {[%emt 0:00:39]} 16. gxf3 {[%emt 0:02:21]} Qxf7 {[%emt 0:00:25]} 17. fxg4 {[%emt 0:12:07]} d4 {[%emt 0:06:56]} 18. Qg3 {[%emt 0:03:22]} Rg8 {[%emt 0:05:04]} 19. f4 {[%emt 0:05:37]} Rxg4 {[%emt 0:21:00]} 20. Qxg4 {[%emt 0:00:06]} O-O-O {[%emt 0:00:06]} 21. Qh3 {[%emt 0:19:29]} Rg8+ {[%emt 0:21:49]} 22. Kf2 {[%emt 0:00:05]} Qxf4+ {[%emt 0:06:48]} 23. Ke2 {[%emt 0:03:01]} Rg2+ {[%emt 0:07:13]} 24. Kd1 {[%emt 0:00:03]} Qxe5 {[%emt 0:04:35]} 25. Nd2 {[%emt 0:02:27]} Rxh2 26. Rc1+ {[%emt 0:02:11]} Kd8 {[%emt 0:12:44]} 27. Qg4 {[%emt 0:03:46]} Rxd2+ {[%emt 0:00:30]} 28. Kxd2 {[%emt 0:00:06]} Qe3+ {[%emt 0:00:04]} 29. Kc2 {[%emt 0:00:19]} Qxd3+ {[%emt 0:00:12]} 30. Kxd3 {[%emt 0:00:02]} Ne5+ {[%emt 0:00:09]} 31. Kxd4 {[%emt 0:00:42]} Nxg4 {[%emt 0:00:01]} 32. Rf8+ {[%emt 0:02:12]} Ke7 {[%emt 0:00:06]} 33. Rg8 {[%emt 0:00:21]} e5+ {[%emt 0:01:51]} 34. Kc3 {[%emt 0:01:41]} Bf3 {[%emt 0:03:14]} 35. Rf1 {[%emt 0:01:38]} Be2 {[%emt 0:01:41]} 36. Re1 {[%emt 0:01:12]} Bf3 {[%emt 0:00:35]} 37. Rg7+ {[%emt 0:00:26]} Kf6 {[%emt 0:00:47]} 38. Rxh7 {[%emt 0:00:03]} a5 {[%emt 0:00:14]} 39. Rh8 {[%emt 0:00:40]} Kg5 {[%emt 0:01:15]} 40. Rb8 {[%emt 0:01:03]} Kf4 {[%emt 0:30:34]} 41. Rxb6 {[%emt 0:30:37]} e4 {[%emt 0:00:15]} 42. Ra6 {[%emt 0:01:48]} Kg3 {[%emt 0:00:00]} 43. Rxa5 {[%emt 0:00:00]} Kf2 {[%emt 0:00:00]} 44. Ra1 {[%emt 0:00:00]} Ne3 {[%emt 0:00:00]} 45. Re5 {[%emt 0:00:00]} Ng4 {[%emt 0:00:00]} 46. Re6 {[%emt 0:00:00]} e3 {[%emt 0:00:00]} 47. a4 {[%emt 0:00:00]} e2 {[%emt 0:00:00]} 48. a5 {[%emt 0:00:00]} Ne3 {[%emt 0:00:00]} 49. Rxe3 {[%emt 0:00:00]} Kxe3 {[%emt 0:00:00]} 50. b4 {[%emt 0:00:00]} Bc6 {[%emt 0:00:00]} 51. a6 {[%emt 0:00:00]} Ba4 {[%emt 0:00:00]} 52. Re1 {[%emt 0:00:00]} 1-0

[Event "AUT-ch 2018"]
[Site "Vienna"]
[Date "2018.07.29"]
[Round "9"]
[White "Zimmermann, Heinz"]
[Black "Windhager, Hannes"]
[Result "1/2-1/2"]
[ECO "A16"]
[WhiteElo "2162"]
[BlackElo "2203"]
[Annotator "NA"]
[PlyCount "119"]
[EventDate "2018.07.22"]
[EventType "swiss"]
[EventCountry "AUT"]
[SourceTitle "playchess.com"]
[Source "ChessBase"]
[SourceQuality "1"]
[TimeControl "40/5400+30:1800+30"]

1. c4 {[%emt 0:00:00]} Nf6 {[%emt 0:00:06]} 2. Nc3 {[%emt 0:00:00]} g6 {[%emt 0:00:04]} 3. g3 {[%emt 0:00:00]} Bg7 {[%emt 0:00:05]} 4. Bg2 {[%emt 0:00:01]} O-O {[%emt 0:00:05]} 5. e4 {[%emt 0:00:28]} c5 {[%emt 0:00:47]} 6. Nge2 {[%emt 0:00:25]} Nc6 {[%emt 0:00:21]} 7. O-O {[%emt 0:00:42]} d6 {[%emt 0:00:25]} 8. a3 {[%emt 0:00:18]} Rb8 {[%emt 0:01:39]} 9. Rb1 {[%emt 0:00:17]} a6 {[%emt 0:05:49]} 10. b4 {[%emt 0:01:51]} b6 {[%emt 0:03:33]} 11. h3 {[%emt 0:04:16]} Nd7 {[%emt 0:02:21]} 12. d3 {[%emt 0:01:15]} Nd4 {[%emt 0:00:39]} 13. Be3 {[%emt 0:06:50]} Bb7 {[%emt 0:01:22]} 14. f4 {[%emt 0:12:24]} e6 {[%emt 0:06:06]} 15. bxc5 {[%emt 0:06:57]} bxc5 {[%emt 0:03:16]} 16. g4 {[%emt 0:09:29]} Bc6 {[%emt 0:05:17]} 17. Rxb8 {[%emt 0:04:32]} Qxb8 {[%emt 0:00:06]} 18. h4 Qb2 {[%emt 0:10:55]} 19. Bc1 {[%emt 0:01:16]} Qc2 {[%emt 0:02:15]} 20. Qxc2 {[%emt 0:11:06]} Nxc2 {[%emt 0:00:08]} 21. Bd2 {[%emt 0:12:11]} Rb8 {[%emt 0:05:05]} 22. Rb1 {[%emt 0:01:15]} Rxb1+ {[%emt 0:03:18]} 23. Nxb1 {[%emt 0:00:08]} Bb2 {[%emt 0:15:13]} 24. Bc1 {[%emt 0:00:14]} Nd4 {[%emt 0:03:19]} 25. Nbc3 {[%emt 0:08:59]} Ba1 {[%emt 0:06:51]} 26. Nxd4 {[%emt 0:03:06]} cxd4 {[%emt 0:00:05]} 27. Nd1 {[%emt 0:00:20]} Ba4 {[%emt 0:01:11]} 28. Bb2 {[%emt 0:00:29]} Bxd1 {[%emt 0:01:16]} 29. Bxa1 {[%emt 0:00:10]} e5 {[%emt 0:01:09]} 30. g5 {[%emt 0:07:14]} Nc5 {[%emt 0:00:42]} 31. fxe5 {[%emt 0:01:13]} dxe5 {[%emt 0:00:06]} 32. a4 {[%emt 0:02:35]} Bxa4 {[%emt 0:08:43]} 33. Bb2 {[%emt 0:00:18]} Nxd3 {[%emt 0:01:07]} 34. Ba3 {[%emt 0:00:10]} Nf4 {[%emt 0:05:48]} 35. Bf1 {[%emt 0:00:17]} d3 {[%emt 0:00:43]} 36. Bb4 {[%emt 0:00:09]} Bc6 {[%emt 0:00:32]} 37. Kf2 {[%emt 0:00:45]} Bxe4 {[%emt 0:01:17]} 38. Ke3 {[%emt 0:00:14]} Bc6 {[%emt 0:03:30]} 39. Bd6 {[%emt 0:02:43]} Ng2+ {[%emt 0:02:04]} 40. Bxg2 {[%emt 0:01:58]} Bxg2 {[%emt 0:30:09]} 41. Kxd3 {[%emt 0:32:20]} Bc6 {[%emt 0:00:00]} 42. Bxe5 {[%emt 0:00:00]} Kf8 {[%emt 0:00:00]} 43. Bd6+ {[%emt 0:00:00]} Ke8 {[%emt 0:00:00]} 44. Kd4 {[%emt 0:00:00]} Kd7 {[%emt 0:00:00]} 45. Ke5 {[%emt 0:00:00]} Ba4 {[%emt 0:00:00]} 46. Bb4 {[%emt 0:00:00]} Bb3 {[%emt 0:00:00]} 47. Kd5 {[%emt 0:00:00]} Bd1 {[%emt 0:00:00]} 48. Ke5 {[%emt 0:00:00]} Kc6 {[%emt 0:00:00]} 49. Kd4 {[%emt 0:00:00]} Bf3 {[%emt 0:00:00]} 50. Ke5 {[%emt 0:00:00]} Bg4 {[%emt 0:00:00]} 51. Kd4 {[%emt 0:00:00]} Kb6 {[%emt 0:00:00]} 52. Bd2 {[%emt 0:00:00]} a5 {[%emt 0:00:00]} 53. Bc3 {[%emt 0:00:00]} a4 {[%emt 0:00:00]} 54. Bb4 {[%emt 0:00:00]} Kc6 {[%emt 0:00:00]} 55. Ba3 {[%emt 0:00:00]} Be2 {[%emt 0:00:00]} 56. Bb4 {[%emt 0:00:00]} Kd7 {[%emt 0:00:00]} 57. Kd5 {[%emt 0:00:00]} Bf3+ {[%emt 0:00:00]} 58. Ke5 {[%emt 0:00:00]} Bd1 {[%emt 0:00:00]} 59. Ba3 {[%emt 0:00:00]} Bb3 {[%emt 0:03:00]} 60. Kd5 {[%emt 0:00:07]} 1/2-1/2

[Event "AUT-ch 2018"]
[Site "Vienna"]
[Date "2018.07.29"]
[Round "9"]
[White "Frank, Emanuel"]
[Black "Huber, Martin Christian"]
[Result "0-1"]
[ECO "E91"]
[WhiteElo "2161"]
[BlackElo "2374"]
[Annotator "NA"]
[PlyCount "82"]
[EventDate "2018.07.22"]
[EventType "swiss"]
[EventCountry "AUT"]
[SourceTitle "playchess.com"]
[Source "ChessBase"]
[SourceQuality "1"]
[TimeControl "40/5400+30:1800+30"]

1. d4 {[%emt 0:00:00]} Nf6 {[%emt 0:00:45]} 2. c4 {[%emt 0:00:00]} g6 {[%emt 0:00:28]} 3. Nc3 {[%emt 0:00:00]} Bg7 {[%emt 0:00:03]} 4. e4 {[%emt 0:00:00]} d6 {[%emt 0:00:06]} 5. Nf3 {[%emt 0:00:02]} O-O {[%emt 0:00:10]} 6. Be2 {[%emt 0:00:05]} Na6 {[%emt 0:00:04]} 7. O-O {[%emt 0:00:51]} e5 {[%emt 0:00:19]} 8. d5 {[%emt 0:00:29]} Nc5 {[%emt 0:00:43]} 9. Qc2 {[%emt 0:00:12]} a5 {[%emt 0:00:07]} 10. Bg5 {[%emt 0:00:53]} h6 {[%emt 0:00:06]} 11. Be3 {[%emt 0:00:03]} b6 {[%emt 0:00:17]} 12. Nd2 {[%emt 0:00:10]} Nh7 {[%emt 0:02:05]} 13. a3 {[%emt 0:04:20]} a4 {[%emt 0:03:39]} 14. Bxc5 {[%emt 0:01:16]} bxc5 {[%emt 0:00:22]} 15. Nxa4 {[%emt 0:00:06]} h5 {[%emt 0:00:11]} 16. b4 {[%emt 0:07:28]} Bh6 {[%emt 0:04:31]} 17. Nc3 {[%emt 0:06:02]} h4 {[%emt 0:31:20]} 18. Nb3 {[%emt 0:15:09]} h3 {[%emt 0:08:36]} 19. g3 {[%emt 0:04:09]} cxb4 {[%emt 0:03:01]} 20. axb4 {[%emt 0:00:26]} Rxa1 {[%emt 0:00:16]} 21. Rxa1 {[%emt 0:01:00]} f5 {[%emt 0:00:31]} 22. Na5 {[%emt 0:22:28]} f4 {[%emt 0:01:19]} 23. Qd3 {[%emt 0:04:57]} Qf6 {[%emt 0:07:01]} 24. Rf1 {[%emt 0:01:43]} Qg5 {[%emt 0:08:51]} 25. Kh1 {[%emt 0:05:03]} Nf6 {[%emt 0:02:34]} 26. Rg1 {[%emt 0:03:28]} Ng4 {[%emt 0:10:24]} 27. Nd1 {[%emt 0:08:00]} f3 {[%emt 0:04:41]} 28. Bf1 {[%emt 0:07:46]} Kg7 {[%emt 0:05:39]} 29. Qc2 {[%emt 0:01:03]} Qd2 {[%emt 0:03:24]} 30. Qxd2 {[%emt 0:04:10]} Bxd2 {[%emt 0:00:07]} 31. Nc6 {[%emt 0:02:01]} Bd7 {[%emt 0:03:19]} 32. Bxh3 {[%emt 0:01:50]} Nxh2 {[%emt 0:00:24]} 33. Kxh2 {[%emt 0:00:33]} Rh8 {[%emt 0:00:07]} 34. Rh1 {[%emt 0:00:32]} Bxh3 {[%emt 0:01:12]} 35. Kg1 {[%emt 0:00:09]} g5 {[%emt 0:00:27]} 36. g4 {[%emt 0:00:45]} Rh4 {[%emt 0:00:30]} 37. Ne3 {[%emt 0:00:35]} Bxe3 {[%emt 0:00:20]} 38. fxe3 {[%emt 0:00:27]} Rxg4+ {[%emt 0:00:06]} 39. Kf2 {[%emt 0:00:46]} Rg2+ {[%emt 0:00:21]} 40. Kf1 {[%emt 0:00:21]} Rh2+ {[%emt 0:30:14]} 41. Kg1 {[%emt 0:00:20]} Rxh1+ {[%emt 0:00:00]} 0-1